Cogmind - Beta 16 @@@ ROGUE MODE // 2025.10.24 @ 22:41:21 Player: nowtakenusername Result: Destroyed by as-88433 with Assembled Heavy Rifle Performance ------------- Evolutions (0) 0 Regions Visited (2) 400 Robots Destroyed (19) 95 Value Destroyed (288) 288 Prototype IDs (0) 0 Alien Tech Used (0) 0 Bonus (0) 0 TOTAL SCORE: 783 Bonus ------- None Cogmind --------- Core Integrity 0/250 Matter 153/300 Energy 250/250 System Corruption 0% Temperature Cool (0) Movement Walking (260) Ox2 Location -10/Mines Parts ------- > --- POWER (1) -------- Ion Engine > --- PROPULSION (2) --- Aluminum Leg > --- UTILITY (2) ------ Medium Storage Unit > --- WEAPON (2) ------- Light Cannon Light Cannon > --- INVENTORY (10) --- Ion Engine Hover Unit Hover Unit Hover Unit Hover Unit Small Storage Unit High-capacity Matter Pod (82) Light Cannon Peak State ------------ > --- POWER ------------ Ion Engine > --- PROPULSION ------- Aluminum Leg Aluminum Leg > --- UTILITY ---------- Medium Storage Unit Seismic Detector > --- WEAPON ----------- EM Pulse Gun Light Assault Rifle > --- INVENTORY -------- Light Ion Engine Flight Unit Flight Unit Flight Unit Small Storage Unit Medium Matter Pod ECM Suite Light Assault Rifle Light Assault Rifle Light Assault Rifle [Rating: 8] Favorites ----------- Power Ion Engine Engine Ion Engine Propulsion Aluminum Leg Leg Aluminum Leg Utility Medium Storage Unit Device ECM Suite Storage Medium Storage Unit Weapon EM Pulse Gun Energy Gun EM Pulse Gun Ballistic Gun Light Assault Rifle Ballistic Cannon Light Cannon Launcher Grenade Launcher Build | -11 -10 -10 ------- Run | Yrd Mat Min Slots Evolved . | . . . Power . | . . . Propulsion . | . . . Utility . | . . . Weapon . | . . . Parts Attached 17 | 7 8 2 Power 3 | 2 1 . Engine 3 | 2 1 . Core . | . . . Reactor . | . . . Propulsion 4 | 2 2 . Treads . | . . . Leg 4 | 2 2 . Wheel . | . . . Hover . | . . . Flight . | . . . Utility 4 | 2 2 . Device 2 | 1 1 . Storage 2 | 1 1 . Processor . | . . . Hackware . | . . . Protection . | . . . Artifact . | . . . Weapon 6 | 1 3 2 Energy Gun 1 | 1 . . Energy Cannon . | . . . Ballistic Gun 1 | . 1 . Ballistic Cannon 3 | . 1 2 Launcher 1 | . 1 . Special Weapon . | . . . Impact Weapon . | . . . Slashing Weapon . | . . . Piercing Weapon . | . . . Special Melee Weapon . | . . . Unidentified Prototypes . | . . . Parts Lost 3 | . . 3 Power . | . . . Propulsion 1 | . . 1 Utility 1 | . . 1 Weapon 1 | . . 1 Highest Loss Streak 3 | . . 3 To Critical Strikes . | . . . Average Backups 8 | 2 8 9 Power . | . 1 1 Propulsion 2 | . 2 4 Utility 1 | . 2 2 Weapon 2 | 1 2 2 Tool/Special . | . . . Unused Backups 13 | . 7 6 Power . | . . . Propulsion 7 | . 3 4 Utility 2 | . 1 1 Weapon 4 | . 3 1 Tool/Special . | . . . Average Slot Usage (%) 92 | . 92 88 Engine 14 | . 14 14 Leg 27 | . 28 23 Device 13 | . 14 9 Storage 14 | . 14 14 Energy Gun 7 | . 7 . Ballistic Gun 3 | . 3 . Ballistic Cannon 6 | . 6 16 Launcher 4 | . 3 9 Peak Build Rating 8 | 6 8 8 Average Rating 6 | 4 7 6 On Entrance 4 | . 6 8 Avg Prop Armor Cover (%) . | . . . Naked Turns . | . . . Heaviest Build 23 | 13 23 23 Greatest Support 20 | 20 20 20 Greatest Overweight (x) 1 | . 1 1 Average Overweight (x) . | . . 1 Largest Inventory Capacity 10 | 8 10 10 Average Capacity 9 | 6 9 10 Most Carried 10 | 3 10 10 Average Carried 8 | 2 8 9 Final Capacity 10 | 8 10 10 Final Carried 10 | 3 10 8 Class Distribution -------------------- 100% | Mutant Dominant Class ---------------- Mutant | -10/Materials Mutant | -10/Mines Resources | -11 -10 -10 ----------- Run | Yrd Mat Min Matter Collected 609 | 185 424 . Remotely . | . . . Salvage Created 510 | 19 413 78 Parts 32 | 3 28 1 Haulers Intercepted 2 | . 2 . Recyclers Shooed . | . . . Parts Field Recycled . | . . . Retrieved Matter . | . . . Parts Self-Destructed . | . . . Prevented . | . . . Parts Restored . | . . . Kills | -11 -10 -10 ------- Run | Yrd Mat Min Combat Hostiles Destroyed 28 | . 14 14 Guns 5 | . 5 . Cannons 10 | . 9 1 AOE 13 | . . 13 Classes Destroyed 7 | 1 4 2 Worker 1 | . . 1 Tunneler 1 | 1 . . Hauler 2 | . 2 . Watcher 1 | . 1 . Swarmer 9 | . 9 . Grunt 5 | . 5 . Assembled 14 | . . 14 Best Kill Streak 15 | 1 5 15 Combat Bots Only 14 | . 5 14 Max Kills in Single Turn 4 | 1 1 4 Gunslinging . | . . . Exploded 4 | . . 4 Melee . | . . . Uniques/NPCs Destroyed . | . . . Combat | -11 -10 -10 -------- Run | Yrd Mat Min Hostile Shots Fired 121 | . 85 36 Missed 45 | . 29 16 Hits 76 | . 56 20 Melee 2 | . . 2 Projectile 74 | . 56 18 Critical Strikes 1 | . . 1 Damage Taken 859 | . 487 372 Core 256 | . 114 142 Absorbed by Shields . | . . . Core Remaining (%) 100 | 100 . . Volleys Fired 75 | 4 61 10 Largest 2 | 1 2 2 Hottest 60 | 40 60 60 Shots Fired 80 | 4 63 13 Gun 25 | 4 21 . Cannon 48 | . 42 6 Launcher 7 | . . 7 Special . | . . . Kinetic 50 | . 44 6 Thermal . | . . . Explosive 7 | . . 7 Electromagnetic 23 | 4 19 . Robot Hit Streak 10 | 2 10 4 Robot Miss Streak 4 | 1 4 3 Penetration Max . | . . . Secondary Targets . | . . . Shots Hit Robots 47 | 3 38 6 Core Hits 49 | 1 18 30 Critical Kills . | . . . Critical Parts Destroyed . | . . . Critical Strikes 2 | . 2 . Blast 1 | . 1 . Corrupt 1 | . 1 . Melee Attacks . | . . . Impact . | . . . Slashing . | . . . Piercing . | . . . Sneak Attacks . | . . . Combat Hostiles . | . . . Follow-up Attacks . | . . . Damage Inflicted 1374 | 42 635 697 Guns 211 | 42 169 . Cannons 500 | . 461 39 Explosions 658 | . . 658 Melee . | . . . Ramming 5 | . 5 . Kinetic 509 | . 470 39 Thermal . | . . . Explosive 658 | . . 658 Electromagnetic 202 | 42 160 . Impact . | . . . Slashing . | . . . Piercing . | . . . Highest Corruption . | . . . Average Corruption . | . . . Corruption Purged . | . . . Corruption Blocked . | . . . Overload Shots . | . . . Overflow Damage 31 | . 2 29 Projectiles 2 | . 2 . Explosions 29 | . . 29 Melee . | . . . Knockbacks 4 | . 3 1 Impact . | . . . Kinetic 4 | . 3 1 Secondary . | . . . Self-Inflicted Damage 40 | . . 40 Shots 2 | . . 2 Rammed . | . . . Targets Rammed 1 | . 1 . Kicked 1 | . 1 . Crushed . | . . . Highest Temperature 20 | . 20 . Average Temperature 9 | . 9 . Received Heat Transfer 66 | . 66 . Siege Activations . | . . . Martial Activations . | . . . Shielding Activations . | . . . Robots Disrupted . | . . . Combat Hostiles . | . . . Robots Corrupted . | . . . Combat Hostiles . | . . . Parts Fried 2 | 2 . . Impact Corruptions . | . . . Robots Melted . | . . . Combat Hostiles . | . . . Parts Melted . | . . . Heat Transferred . | . . . Parts Sabotaged . | . . . Parts Stolen . | . . . Parts Stripped . | . . . Power Chain Reactions . | . . . Alert | -11 -10 -10 ------- Run | Yrd Mat Min Maximum Alert Level . | . . . Low Security (%) 100 | 100 100 100 Level 1 . | . . . Level 2 . | . . . Level 3 . | . . . Level 4 . | . . . Level 5 . | . . . High Security . | . . . Max Security . | . . . Peak Influence 100 | 5 100 50 Initial 30 | . . 30 Average 34 | . 39 29 Influence Increases 385 | 5 346 34 Destroy 0b10 Robot/C 280 | . 280 . Destroy 0b10 Robot/NC 25 | 5 15 5 Destroy Leader 46 | . 46 . Successful Hack 5 | . 5 . Destroy Structure 29 | . . 29 Influence Decreases 371 | 5 268 98 Entered New Map 48 | . . 48 Time Decay 293 | 5 268 20 Lost Part 30 | . . 30 Squads Dispatched 2 | . 2 . Investigation 1 | . 1 . Extermination . | . . . Reinforcement 1 | . 1 . Assault . | . . . Garrison . | . . . Intercept . | . . . Searches Triggered . | . . . Construction Impeded . | . . . Haulers Reinforced . | . . . Active Scanning Responses . | . . . Cargo Convoy Interrupts . | . . . Stealth | -11 -10 -10 --------- Run | Yrd Mat Min Distress Signals 2 | . 2 . Communications Jammed . | . . . Distress Signals . | . . . Times Spotted 41 | . 22 19 Peak Tracking Total 15 | . 4 15 Tactical Retreats 3 | . 3 . ECM-based Alert Blocks 7 | . 7 . Traps | -11 -10 -10 ------- Run | Yrd Mat Min Traps Triggered 1 | . 1 . Indirectly . | . . . Trap Hack Attempts . | . . . Triggered . | . . . Disarmed . | . . . Reprogrammed . | . . . Reused . | . . . Traps Extracted . | . . . Installed . | . . . Triggered . | . . . Machines | -11 -10 -10 ---------- Run | Yrd Mat Min Machines Disabled . | . . . Max in Single Turn . | . . . Machines Repaired . | . . . Machines Dismantled . | . . . Machines Sabotaged . | . . . Overloaded Fab Kills . | . . . Hacking | -11 -10 -10 --------- Run | Yrd Mat Min Machines Accessed 4 | . 3 1 Terminals 3 | . 2 1 Fabricators . | . . . Repair Stations . | . . . Recycling Units 1 | . 1 . Scanalyzers . | . . . Garrison Access . | . . . Total Hacks 8 | . 5 3 Successful 4 | . 2 2 Failed 4 | . 3 1 Catastrophic . | . . . Database Lockouts . | . . . Manual . | . . . Terminals 7 | . 4 3 Fabricators . | . . . Repair Stations . | . . . Recycling Units 1 | . 1 . Scanalyzers . | . . . Garrison Access . | . . . Terminal Hacks 3 | . 1 2 Investigation Status 1 | . . 1 Hauler Manifests 1 | . 1 . Zone Layout 1 | . . 1 Fabricator Hacks . | . . . Repair Station Hacks . | . . . Recycling Unit Hacks 1 | . 1 . Report Inventory 1 | . 1 . Scanalyzer . | . . . Garrison Access Hacks . | . . . Unauthorized Hacks . | . . . Terminals . | . . . Fabricators . | . . . Repair Stations . | . . . Recycling Units . | . . . Scanalyzers . | . . . Garrison Access . | . . . Data Cores Recovered . | . . . Used . | . . . Hacking Detections 3 | . 2 1 Full Trace Events . | . . . Feedback Events . | . . . Feedback Blocked . | . . . Robot Schematics Acquired . | . . . Robots Built . | . . . Authchips . | . . . Time . | . . . Total Robot Build Rating . | . . . Part Schematics Acquired . | . . . Parts Built . | . . . Authchips . | . . . Time . | . . . Total Part Build Rating . | . . . Part Studies Acquired . | . . . Parts Repaired . | . . . Time . | . . . Parts Recycled . | . . . Recycled Matter . | . . . Retrieved Matter . | . . . Retrieved Components . | . . . Parts Scanalyzed . | . . . Part Schematics Acquired . | . . . Parts Damaged . | . . . Bothacking | -11 -10 -10 ------------ Run | Yrd Mat Min Used RIF Installer . | . . . Robots Hacked . | . . . Non-combat . | . . . Combat . | . . . Robot Hacks Applied . | . . . Relay Couplers Released . | . . . Fabnet Peak Effective % . | . . . Robots Rewired . | . . . Allies Hacked . | . . . Hacks Repelled . | . . . Allies | -11 -10 -10 -------- Run | Yrd Mat Min Total Allies . | . . . Largest Group . | . . . Highest-Rated Group . | . . . Highest-Rated Ally . | . . . Total Orders . | . . . Ally Attacks . | . . . Total Damage . | . . . Kills . | . . . Allies Corrupted . | . . . Allies Melted . | . . . Intel | -11 -10 -10 ------- Run | Yrd Mat Min Active Infowar (turns) 822 | 6 789 27 Seismic 337 | 6 331 . ECM 485 | . 458 27 Robot Analysis Total . | . . . Derelict Logs Recovered . | . . . Drone Launches . | . . . Drone Recoveries . | . . . Exploration | -11 -10 -10 ------------- Run | Yrd Mat Min Turns Passed 919 | 86 789 44 Spaces Moved 523 | 60 453 10 Core 9 | 9 . . Treads . | . . . Legs 514 | 51 453 10 Wheels . | . . . Hover . | . . . Flight . | . . . Fastest Speed 50 | 50 120 190 Average Speed 132 | 109 133 190 Slowest Speed 190 | 120 190 190 Overloaded Moves . | . . . Propulsion Burnouts . | . . . Robots Hopped . | . . . Potential Cave-ins . | . . . Cave-ins Triggered . | . . . Exploration Rate (%) 21 | 5 55 4 Regions Visited 2 Branch Regions 1 Pre-discovered Areas . | . . . Known Exits Taken . | . . . Unknown Exits Taken 2 | 1 1 . Scrap Searched . | . . . Spaces Dug . | . . . Terrain Destroyed 39 | . . 39 Melee . | . . . Projectile . | . . . AOE 39 | . . 39 Terrain Rammed . | . . . Walls Destroyed . | . . . Machines Disabled . | . . . Actions | -11 -10 -10 --------- Run | Yrd Mat Min Total 676 | 73 581 22 Wait 29 | . 29 . Move 521 | 59 452 10 Hop . | . . . Pick Up 19 | 3 16 . Fast Attach 6 | 5 1 . Attach 5 | 1 2 2 Detach 1 | . 1 . Swap 6 | 1 5 . Drop 13 | . 13 . Fire 75 | 4 61 10 Melee . | . . . Ram . | . . . Kick 1 | . 1 . Crush . | . . . Escape Stasis . | . . . Rewire . | . . . Trap . | . . . Miscellaneous . | . . . Route ------- -11/Scrapyard -10/Materials (discovered 3 exits: [*Mat] / *Min / [*Sub]) -10/Mines History --------- Turn | Location | Event 4 | -11/Scrapyard | Discovered new exit (range 16) 87 | -11/Scrapyard | Entered Materials 212 | -10/Materials | Discovered new exit (range 5) 303 | -10/Materials | Build established: Mutant 615 | -10/Materials | Discovered new exit (range 16) 682 | -10/Materials | Discovered new exit (range 5) 876 | -10/Materials | Entered Mines 877 | -10/Mines | Assembled infested the area 907 | -10/Mines | Core integrity fell below 50% 914 | -10/Mines | Core integrity fell below 20% 920 | -10/Mines | Destroyed by as-88433 with Assembled Heavy Rifle Last Messages --------------- 00898_ K-01 Serf destroyed. 00900_ Destroyed Asb. Hover Unit. 00902_ as-93860 destroyed. 00902_ as-84429 destroyed. 00902_ as-45795 destroyed. 00902_ as-61554 destroyed. 00903_ ECM Suite destroyed. 00905_ Aluminum Leg destroyed. 00905_ as-78718 destroyed. 00905_ as-80944 destroyed. 00905_ as-01747 destroyed. 00905_ as-22322 destroyed. 00907_ Lgt. Cannon severed. 00907_ as-81469 destroyed. 00907_ Grenade Launcher destroyed. 00907_ Destroyed Grenade Launcher. 00911_ as-20468 destroyed. 00915_ The unstable cave ceiling collapses. 00917_ as-86279 knocked back. 00919_ The unstable cave ceiling collapses. Map ----- +----------------------------------------------------+ | ????????????????????????????????????? | | ????????????????????????????????????? | | ????????????????????????????????????? | | ????????????????????????????????????? | | ????????????????????????????????????? | | ????????????????????????????????????? | | ????????????????????????????????????? | | ????????????????????????????????????? | | ????????????????????????????????????? | | ????????????????????????????????????? | | ????????????????????????????????????? | | ????????????????????????????????????? | | ????????????????????????????????????? | | ????????????????????????????????????? | | ????????????????????????????????????? | | ????????????????????????????????????? | | ????????????????????????????????????? | | ????????????????????????????????????? | | ????????????????????????????????????? | | ????????????????????????????????????? | | ????????????????????????????????????? | | ????????????##??????????????????????? | | ???????????? ###############????????? | | ?????????? ## ##???????? | | ?????????? < ##???????? | | ??????????# % # a @ T#???????? | | ????????????# % # ##???????? | | ????????????#= aa a% ##????????? | | ????????????#=% # #?????????? | | ????????????# !# ##?????????? | | ????????????# # ##???????????? | | ????????????# #########????????????? | | ????????????# ####?????????????????? | | ????????????# #?????????????????? | | ????????????##### #?????????????????? | | ????????????????# #?????????????????? | | ????????????????# #?#####???????????? | | ????????????##??# ### ##??????????? | | ???????????? ##?# ## ##??#####??? | | ???????????? ### #### ##?? | | ???????????? ## ##? | | ????????????????????????????????????? | | ????????????????????????????????????? | | ????????????????????????????????????? | | ????????????????????????????????????? | | ????????????????????????????????????? | | ????????????????????????????????????? | | ????????????????????????????????????? | | ????????????????????????????????????? | | ????????????????????????????????????? | +----------------------------------------------------+ Best States ------------- Heat Dissipation 25 Energy Generation 10 Energy Capacity 250 Matter Stores 300 Matter Capacity 300 Sight Range 16 Terrain Scan Density 10 ECM Strength 1 Evasion (%) 55 Item Schematics ----------------- None Robot Schematics ------------------ None Fabricated ------------ Nothing Repaired ---------- Nothing Studied --------- None Alien Tech Used ----------------- None Achievements -------------- None Challenges ------------ None Game ------ Seed LaserStormWell Manual? 0 Play Time 00:12:36 Cumulative 35.5 hours Start 2025.10.24 @ 22:26:02 End 2025.10.24 @ 22:41:21 Sessions 1 Manual Loads 0 Difficulty Rogue Special Mode None Game No. 28 Rogue 28 Adventurer 0 Explorer 0 Win Type - Total 0 Types 0/0/0/0/0/0/0/0/0/0 Lore% 18 Gallery% 28 Achievement% 18 Wizard Run 0 Options --------- Layout 1 ASCII 0 Keyboard 1 Movement Vi Keybinds 0 Fullscreen 1 Font 32/SmallcapsGlow Map View 50x35 Zoom Use 0% Tactical HUD 1 Map Filters NONE Filters NONE Steam 1 RUN: 9477aefa-cba2-419b-9ed4-c9ce90e1fc49